bitfinex-derivatives/quotes_BTCF0:USTF0_20251030
["timestamp","ask_amount","ask_price","bid_price","bid_amount"]
[1761857835424,0.05817,107540.0,107530.0,0.6834]
[1761857835726,0.26203283,107540.0,107530.0,0.6834]
[1761857836420,0.26203283,107540.0,107530.0,0.6844]
[1761857837025,0.26203283,107540.0,107530.0,0.6854]
[1761857837610,0.06746,107540.0,107530.0,0.6854]
[1761857837813,0.06746,107540.0,107530.0,0.87997283]
[1761857838320,0.27317579,107540.0,107530.0,0.87997283]
[1761857838827,0.07860296,107540.0,107530.0,0.87997283]
[1761857839325,0.00929,107540.0,107530.0,0.87997283]
[1761857839527,0.01271,107570.0,107560.0,0.0929923]
[1761857839820,0.01271,107570.0,107560.0,1.43334566]
[1761857840029,0.058,107570.0,107560.0,1.43334566]
[1761857841017,0.06929,107570.0,107560.0,1.23877283]
[1761857841727,0.07429,107570.0,107560.0,1.23877283]
[1761857842325,0.07429,107570.0,107560.0,1.43334566]
[1761857842527,0.025,107570.0,107560.0,1.43334566]
[1761857843121,0.04595,107570.0,107560.0,1.43334566]
[1761857843528,0.06829,107570.0,107560.0,1.43334566]
[1761857843828,0.06929,107570.0,107560.0,1.43334566]
[1761857844515,0.06929,107570.0,107560.0,1.0442]
[1761857844719,0.06929,107570.0,107560.0,1.43334566]
[1761857845726,0.06929,107570.0,107560.0,1.0442]
[1761857846121,0.06929,107570.0,107560.0,1.23877283]
[1761857846635,0.06929,107570.0,107560.0,0.7216]
[1761857846836,0.26386283,107570.0,107560.0,0.7216]
[1761857847031,0.28717536,107570.0,107560.0,0.7216]
[1761857849420,0.33595824,107570.0,107560.0,0.7216]
[1761857851023,0.65851824,107570.0,107560.0,0.7216]
[1761857852331,1.25851824,107570.0,107560.0,0.7216]
[1761857853540,0.93595824,107570.0,107560.0,0.7216]
[1761857853731,1.25851824,107570.0,107560.0,0.7216]
[1761857854038,0.93595824,107570.0,107560.0,0.7216]
[1761857854334,1.25851824,107570.0,107560.0,0.7216]
[1761857854943,0.93595824,107570.0,107560.0,0.7216]
[1761857855235,1.25851824,107570.0,107560.0,0.7216]
[1761857855432,0.93595824,107570.0,107560.0,0.7216]
[1761857855744,1.25851824,107570.0,107560.0,0.7216]
[1761857856037,0.93595824,107570.0,107560.0,0.7216]
[1761857856229,1.25851824,107570.0,107560.0,0.7216]
[1761857856739,0.93595824,107570.0,107560.0,0.7216]
[1761857856939,1.25851824,107570.0,107560.0,0.7216]
[1761857857131,1.01516253,107570.0,107560.0,0.7216]
[1761857857438,0.69260253,107570.0,107560.0,0.7216]
[1761857857637,1.01516253,107570.0,107560.0,0.7216]
[1761857859535,0.69260253,107570.0,107560.0,0.7216]
[1761857859734,1.01516253,107570.0,107560.0,0.7216]
[1761857864040,0.05766,107560.0,107550.0,0.3608]
[1761857864244,0.05766,107550.0,107540.0,0.68332]
[1761857864853,0.01344,107550.0,107540.0,0.68332]
[1761857865036,0.01244,107550.0,107540.0,0.92667571]
[1761857865238,0.03532,107550.0,107540.0,0.92667571]
[1761857865546,0.05666,107550.0,107540.0,0.92667571]
[1761857865847,0.05666,107550.0,107540.0,0.92867571]
[1761857866143,0.05666,107550.0,107540.0,0.68532]
[1761857866530,0.05666,107550.0,107540.0,0.68632]
[1761857867247,0.05666,107550.0,107540.0,0.92967571]
[1761857871542,0.05666,107550.0,107540.0,0.88096358]
[1761857872449,0.05666,107550.0,107540.0,0.68632]
[1761857872752,0.05666,107550.0,107540.0,0.88096358]
[1761857875047,0.01244,107550.0,107540.0,0.88096358]
[1761857875452,0.03532,107550.0,107540.0,0.88096358]
[1761857875843,0.05666,107550.0,107540.0,0.88096358]
[1761857876044,0.03532,107550.0,107540.0,0.97397248]
[1761857876348,0.05666,107550.0,107540.0,0.97397248]
[1761857877840,0.05666,107550.0,107540.0,0.7793289]
[1761857878044,0.05666,107550.0,107540.0,0.97397248]
[1761857878449,0.05666,107550.0,107540.0,0.88096358]
[1761857882657,0.06595,107550.0,107540.0,0.88096358]
[1761857885162,0.02173,107550.0,107540.0,0.97397258]
[1761857885356,0.01244,107550.0,107540.0,0.97397258]
[1761857885657,0.01344,107560.0,107540.0,1.04248574]
[1761857885857,0.06695,107560.0,107550.0,0.55544358]
[1761857887454,0.04561,107560.0,107550.0,0.64844398]
[1761857887755,0.01344,107560.0,107550.0,0.64844398]
[1761857887950,0.05693,107570.0,107550.0,0.84408756]
[1761857888147,0.08957649,107570.0,107560.0,0.87788358]
[1761857888355,0.01271,107570.0,107560.0,0.97087538]
[1761857889058,0.01271,107570.0,107560.0,1.03658854]
[1761857889251,0.01371,107570.0,107560.0,0.97087538]
[1761857890051,0.01371,107570.0,107560.0,1.03658854]
[1761857890452,0.01395,107580.0,107570.0,0.0929832]
[1761857890655,0.01395,107580.0,107570.0,0.64842678]
[1761857890851,0.01395,107580.0,107570.0,0.65122678]
[1761857891561,0.01395,107580.0,107570.0,0.64842678]
[1761857891762,0.01495,107580.0,107570.0,0.64842678]
[1761857892060,0.01595,107580.0,107570.0,0.64842678]
[1761857893458,0.01595,107580.0,107570.0,0.65122678]
[1761857894361,0.01595,107580.0,107570.0,0.64842678]
[1761857894958,0.05982,107580.0,107570.0,0.55544358]
[1761857895559,0.06911,107580.0,107570.0,0.3608]
[1761857895760,0.06911,107580.0,107570.0,0.68316]
[1761857900665,0.06911,107580.0,107570.0,0.68312]
[1761857900853,0.09239616,107580.0,107570.0,0.68312]
[1761857901058,0.06911,107580.0,107570.0,0.68312]
[1761857901261,0.26375358,107580.0,107570.0,0.68312]
[1761857901557,0.0923986,107580.0,107570.0,0.68312]
[1761857907174,0.0485286,107580.0,107570.0,0.68312]
[1761857907369,0.39931712,107600.0,107570.0,1.16819026]
[1761857907370,0.02507712,107600.0,107570.0,1.16819026]
[1761857907668,0.01376,107600.0,107590.0,0.8145658]
[1761857907973,0.01376,107600.0,107590.0,1.33152938]
[1761857908172,0.01376,107600.0,107590.0,1.33432938]
[1761857908468,0.01476,107600.0,107590.0,1.33432938]
[1761857909065,0.01476,107600.0,107590.0,1.34501225]
[1761857910176,0.01476,107600.0,107590.0,1.34601225]
[1761857910769,0.01376,107600.0,107590.0,1.33552938]
[1761857913373,0.05719,107600.0,107590.0,1.24256358]
[1761857915680,0.06648,107600.0,107590.0,1.24256358]
[1761857917681,0.06648,107600.0,107590.0,0.7256]
[1761857917978,0.06648,107600.0,107590.0,1.04784]
[1761857918170,0.06648,107600.0,107590.0,1.24248358]
[1761857921383,0.06648,107600.0,107590.0,1.04784]
[1761857921680,0.06648,107600.0,107590.0,1.24248358]
[1761857927186,0.06648,107600.0,107590.0,1.04784]
[1761857927382,0.06648,107600.0,107590.0,1.24248358]
[1761857928984,0.06648,107600.0,107590.0,0.7256]
[1761857929581,0.05719,107600.0,107590.0,0.7256]
[1761857929781,0.06648,107600.0,107590.0,0.7256]
[1761857930687,0.06648,107600.0,107590.0,0.004]
[1761857930885,0.08977403,107600.0,107590.0,0.004]
[1761857931085,0.28441761,107600.0,107590.0,0.004]
[1761857931281,0.48169043,107600.0,107590.0,0.004]
[1761857931787,0.47889043,107600.0,107590.0,0.004]
[1761857931987,0.57883437,107600.0,107590.0,0.001]
[1761857932188,0.05938,107590.0,107580.0,1.1553582]
[1761857932389,0.28652223,107590.0,107580.0,1.1553582]
[1761857933589,0.09196403,107590.0,107580.0,1.1553582]
[1761857933796,0.06867,107590.0,107580.0,1.3499164]
[1761857934897,0.28747433,107590.0,107580.0,0.6]
[1761857935582,0.09291613,107590.0,107580.0,0.6]
[1761857935781,0.28747433,107590.0,107580.0,0.6]
[1761857936788,0.28747433,107590.0,107580.0,0.7945582]
[1761857937391,0.28747433,107590.0,107580.0,1.1553582]
[1761857937688,0.09291613,107590.0,107580.0,1.1553582]
[1761857938495,0.09291613,107590.0,107580.0,1.4775582]
[1761857942888,0.28747433,107590.0,107580.0,0.6]
[1761857943587,0.09291613,107590.0,107580.0,0.6]
[1761857943786,0.28747433,107590.0,107580.0,0.9608]
[1761857944193,0.28747433,107590.0,107580.0,1.1553582]
[1761857944387,0.28747433,107590.0,107580.0,0.9608]
[1761857944993,0.28747433,107590.0,107580.0,1.1553582]
[1761857945183,0.28747433,107590.0,107580.0,0.1945582]
[1761857945694,0.28747433,107590.0,107580.0,0.5553582]
[1761857945892,0.28747433,107590.0,107580.0,0.3608]
[1761857946996,0.05938,107580.0,107570.0,0.5553582]
[1761857947297,0.06867,107580.0,107570.0,0.5553582]
[1761857948492,0.06867,107580.0,107570.0,0.5573582]
[1761857954996,0.04555,107580.0,107570.0,0.5573582]
[1761857955305,0.06849,107580.0,107570.0,0.5573582]
[1761857960201,0.01315,107580.0,107570.0,0.5573582]
[1761857960403,0.01315,107590.0,107570.0,0.8448994]
[1761857960697,0.01315,107590.0,107580.0,1.0748764]
[1761857960898,0.01315,107590.0,107580.0,1.0720764]
[1761857962096,0.05908,107590.0,107580.0,0.8775182]
[1761857962296,0.05908,107590.0,107580.0,1.0720764]
[1761857962505,0.05908,107590.0,107580.0,0.68296]
[1761857962803,0.06837,107590.0,107580.0,0.8775182]
[1761857963205,0.06937,107590.0,107580.0,0.8775182]
[1761857963705,0.06937,107590.0,107580.0,0.8785182]
[1761857963904,0.06837,107590.0,107580.0,0.5573582]
[1761857964096,0.06837,107590.0,107580.0,0.8795182]
[1761857964301,0.06837,107590.0,107580.0,0.8785182]
[1761857965205,0.28616251,107590.0,107580.0,0.3618]
[1761857966009,0.09160431,107590.0,107580.0,0.3618]
[1761857966209,0.28616251,107590.0,107580.0,0.3618]
[1761857966409,0.28616251,107590.0,107580.0,0.3608]
[1761857966705,0.88816251,107590.0,107580.0,0.3608]
[1761857966907,0.89096251,107590.0,107580.0,0.3608]
[1761857967111,0.05875,107580.0,107570.0,0.3608]
[1761857967305,0.28583251,107580.0,107570.0,0.3608]
[1761857969513,0.28583251,107580.0,107570.0,0.3618]
[1761857970212,0.09127431,107580.0,107570.0,0.5563582]
[1761857970511,0.05875,107580.0,107570.0,0.5563582]
[1761857975914,0.05875,107580.0,107570.0,0.3618]
[1761857976115,0.05875,107580.0,107570.0,0.5563582]
[1761857978417,0.05875,107580.0,107570.0,0.3618]
[1761857978718,0.05875,107580.0,107570.0,0.5563582]
[1761857980011,0.03555,107580.0,107570.0,0.5563582]
[1761857980212,0.05875,107580.0,107570.0,0.5563582]
[1761857981418,0.05875,107580.0,107570.0,0.6493411]
[1761857981621,0.03555,107580.0,107570.0,0.5563582]
[1761857982011,0.05816,107580.0,107570.0,0.5563582]
[1761857983123,0.05816,107580.0,107570.0,0.3618]
[1761857983322,0.05816,107580.0,107570.0,0.5563582]
[1761857984323,0.05816,107580.0,107570.0,0.3618]
[1761857984719,0.05816,107580.0,107570.0,0.5563582]
[1761857985626,0.06745,107580.0,107570.0,0.5563582]
[1761857986425,0.06745,107580.0,107570.0,0.8784382]
[1761857989626,0.05816,107580.0,107570.0,0.8784382]
[1761857989823,0.06745,107580.0,107570.0,0.8784382]
[1761857993415,0.06745,107580.0,107570.0,0.68388]
[1761857993821,0.06745,107580.0,107570.0,0.87843729]
[1761857996124,0.06745,107580.0,107570.0,0.3618]
[1761857996316,0.28529066,107580.0,107570.0,0.68384]
[1761857997121,0.09073337,107580.0,107570.0,0.68384]
[1761857998120,0.28529066,107580.0,107570.0,0.68384]
[1761857998531,0.28529066,107580.0,107570.0,0.32304]
[1761857998730,0.28529066,107580.0,107570.0,0.68384]
[1761857999228,0.09073337,107580.0,107570.0,0.68384]
[1761858001126,0.88529066,107580.0,107570.0,0.001]
[1761858001426,0.05731,107560.0,107550.0,0.3608]
[1761858001626,0.05731,107560.0,107550.0,0.68284]
[1761858001627,0.08988337,107560.0,107550.0,0.68284]
[1761858002228,0.0666,107560.0,107550.0,0.68284]
[1761858002630,0.08987222,107560.0,107550.0,0.68284]
[1761858003025,0.07682265,107560.0,107550.0,0.68284]
[1761858003225,0.02360265,107560.0,107550.0,0.87839729]
[1761858003433,0.06753265,107560.0,107550.0,0.87839729]
[1761858003731,0.06753265,107560.0,107550.0,0.87377431]
[1761858005932,0.07682265,107560.0,107550.0,0.87377431]
[1761858008025,0.07682265,107560.0,107550.0,0.67921702]
[1761858008225,0.07682265,107560.0,107550.0,0.87377431]
[1761858009032,0.07682265,107560.0,107550.0,0.67921702]
[1761858011627,0.27137994,107560.0,107550.0,0.67921702]
[1761858011832,0.07682265,107560.0,107550.0,0.35717702]
[1761858012026,0.07682265,107560.0,107550.0,0.001]
[1761858012027,0.27137994,107560.0,107550.0,0.001]
[1761858012231,0.89462603,107560.0,107550.0,0.001]
[1761858012434,0.70006874,107560.0,107550.0,0.3618]
[1761858012631,0.29462603,107560.0,107550.0,0.3618]
[1761858012837,0.29742603,107560.0,107550.0,0.3618]
[1761858013030,0.29462603,107560.0,107550.0,0.3608]
[1761858013337,0.29462603,107560.0,107550.0,0.3618]
[1761858013934,0.29762603,107560.0,107550.0,0.3608]
[1761858014132,0.05658,107550.0,107540.0,0.68284]
[1761858014332,0.06587,107550.0,107540.0,0.68284]
[1761858015138,0.06687,107550.0,107540.0,0.68284]
[1761858016038,0.26242729,107550.0,107540.0,0.3608]
[1761858016736,0.55692852,107550.0,107540.0,0.3608]
[1761858016927,0.58015856,107550.0,107540.0,0.3608]
[1761858017134,0.38560127,107550.0,107540.0,0.3608]
[1761858017337,0.28565733,107550.0,107540.0,0.3608]
[1761858018336,0.0589,107540.0,107530.0,0.68284]
[1761858018533,0.26274729,107540.0,107530.0,0.68284]
[1761858019543,0.26274729,107540.0,107530.0,0.3608]
[1761858019838,0.26274729,107540.0,107530.0,0.3618]
[1761858020546,0.68473123,107540.0,107530.0,0.001]
[1761858020734,0.58478729,107540.0,107530.0,0.001]
[1761858020935,0.60799903,107540.0,107530.0,0.001]
[1761858021443,0.96879903,107540.0,107530.0,0.001]
[1761858023339,1.06874297,107540.0,107530.0,0.001]
[1761858023741,1.66874297,107540.0,107530.0,0.001]
[1761858025642,1.67154297,107540.0,107530.0,0.001]
[1761858025837,1.06874297,107540.0,107530.0,0.001]
[1761858027242,0.71074297,107540.0,107530.0,0.001]
[1761858027438,0.70794297,107540.0,107530.0,0.001]
[1761858027850,0.60799903,107540.0,107530.0,0.001]
[1761858028753,1.20799903,107540.0,107530.0,0.001]
[1761858028953,1.01344174,107540.0,107530.0,0.001]
[1761858029147,1.20799903,107540.0,107530.0,0.001]
[1761858034265,1.20799903,107540.0,107530.0,0.3618]
[1761858034565,1.20799903,107540.0,107530.0,0.001]
[1761858035768,1.20799903,107540.0,107530.0,0.3618]
[1761858038160,1.20799903,107540.0,107530.0,0.001]
[1761858038361,1.23297641,107540.0,107530.0,0.001]
[1761858038561,1.23577641,107540.0,107530.0,0.001]
[1761858038761,1.59657641,107540.0,107530.0,0.001]
[1761858038962,1.59377641,107540.0,107530.0,0.001]
[1761858039558,1.59657641,107540.0,107530.0,0.001]
[1761858040670,1.23297641,107540.0,107530.0,0.001]
[1761858040960,1.23297641,107540.0,107530.0,0.3618]
[1761858041165,1.23297641,107540.0,107530.0,0.001]
[1761858043577,1.23297641,107540.0,107530.0,0.3618]
[1761858044174,0.91093641,107540.0,107530.0,0.001]
[1761858044363,1.23297641,107540.0,107530.0,0.3618]
[1761858045267,1.23297641,107540.0,107530.0,0.001]
[1761858050370,1.03841912,107540.0,107530.0,0.001]
[1761858050579,1.23297641,107540.0,107530.0,0.3618]
[1761858050876,1.23297641,107540.0,107530.0,0.3608]
[1761858051073,1.23397641,107540.0,107530.0,0.3608]
[1761858051469,1.23497641,107540.0,107530.0,0.3608]
[1761858052478,0.05814,107530.0,107520.0,0.3608]
[1761858052777,0.28519903,107530.0,107520.0,0.3608]
[1761858052977,0.27590903,107530.0,107520.0,0.3608]
[1761858053271,0.276143,107530.0,107520.0,0.3608]
[1761858053678,0.276143,107530.0,107520.0,0.3618]
[1761858058579,0.276143,107530.0,107520.0,0.001]
[1761858058773,0.276143,107530.0,107520.0,0.3618]
[1761858059679,0.86600164,107530.0,107520.0,0.001]
[1761858059870,0.05814,107520.0,107510.0,0.00011539]
[1761858060070,0.31055597,107520.0,107510.0,0.36091539]
[1761858060271,0.285433,107520.0,107510.0,0.36091539]
[1761858060772,0.48022426,107520.0,107510.0,0.36091539]
[1761858061078,0.48122426,107520.0,107510.0,0.36091539]
[1761858062777,0.48222426,107520.0,107510.0,0.36091539]
[1761858063981,0.08335174,107520.0,107510.0,0.55570665]
[1761858064879,0.278143,107520.0,107510.0,0.55570665]
[1761858065182,0.278143,107520.0,107510.0,0.36091539]
[1761858065373,0.47293426,107520.0,107510.0,0.36091539]
[1761858065568,0.48222426,107520.0,107510.0,0.36091539]
[1761858065769,0.05814,107500.0,107490.0,0.70396592]
[1761858065974,0.48022426,107500.0,107490.0,0.70396592]
[1761858066282,0.09064174,107500.0,107490.0,0.70396592]
[1761858066677,0.2855189,107500.0,107490.0,0.70396592]
[1761858067583,0.2957264,107500.0,107490.0,0.70396592]
[1761858068283,0.27251466,107500.0,107490.0,0.70396592]
[1761858068879,0.29590927,107500.0,107490.0,0.70396592]
[1761858069383,0.27251466,107500.0,107490.0,0.70496592]
[1761858069884,0.49069493,107500.0,107490.0,0.70496592]
[1761858070886,0.46730592,107500.0,107490.0,0.70496592]
[1761858071181,0.49068906,107500.0,107490.0,0.70496592]
[1761858071371,0.46730592,107500.0,107490.0,0.70496592]
[1761858071576,0.49068409,107500.0,107490.0,0.70496592]
[1761858073386,0.46730592,107500.0,107490.0,0.70496592]
[1761858073678,0.46730592,107500.0,107490.0,0.38300592]
[1761858075475,0.46730592,107500.0,107490.0,0.02220592]
[1761858076582,0.4906735,107500.0,107490.0,0.02220592]
[1761858083290,0.10109098,107500.0,107490.0,0.02220592]
[1761858083487,0.4906735,107500.0,107490.0,0.02220592]
[1761858083785,0.4906735,107500.0,107490.0,0.38300592]
[1761858085688,0.46730592,107500.0,107490.0,0.38300592]
[1761858085889,0.49103104,107500.0,107490.0,0.38300592]
[1761858089383,0.85183104,107500.0,107490.0,0.02220592]
[1761858091090,0.49103104,107500.0,107490.0,0.02220592]
[1761858093182,0.5160787,107500.0,107490.0,0.02220592]
[1761858095595,0.8379987,107500.0,107490.0,0.02220592]
[1761858096393,0.83811439,107500.0,107490.0,0.02220592]
[1761858096690,0.83802849,107500.0,107490.0,0.02220592]
[1761858097494,0.83811769,107500.0,107490.0,0.02220592]
[1761858097681,0.83802849,107500.0,107490.0,0.02220592]
[1761858097887,0.83812686,107500.0,107490.0,0.02220592]
[1761858098091,0.83802849,107500.0,107490.0,0.02220592]
[1761858098893,0.83811058,107500.0,107490.0,0.02220592]
[1761858099090,0.83802849,107500.0,107490.0,0.02220592]
[1761858099296,0.83813708,107500.0,107490.0,0.02220592]
[1761858099492,0.83802849,107500.0,107490.0,0.02220592]
[1761858099692,0.83813102,107500.0,107490.0,0.02220592]
[1761858099893,0.83802849,107500.0,107490.0,0.02220592]
[1761858100092,1.19892882,107500.0,107490.0,0.02220592]
[1761858100398,1.19882849,107500.0,107490.0,0.02220592]
[1761858102197,1.23222537,107500.0,107490.0,0.02220592]
[1761858103001,1.19882849,107500.0,107490.0,0.02220592]
[1761858103498,1.44472849,107500.0,107490.0,0.02220592]
[1761858103796,1.47812537,107500.0,107490.0,0.02120592]
[1761858103989,1.44872849,107500.0,107490.0,0.02120592]
[1761858104390,1.48212537,107500.0,107490.0,0.02120592]
[1761858105098,1.44872849,107500.0,107490.0,0.02120592]
[1761858105302,1.48212537,107500.0,107490.0,0.02120592]
[1761858106388,1.48223054,107500.0,107490.0,0.02120592]
[1761858106593,1.48212537,107500.0,107490.0,0.02120592]
[1761858106990,1.48219742,107500.0,107490.0,0.02120592]
[1761858107196,1.48212537,107500.0,107490.0,0.02120592]
[1761858108901,1.50036369,107500.0,107490.0,0.02120592]
[1761858109097,1.50585352,107500.0,107490.0,0.02120592]
[1761858110094,1.50596678,107500.0,107490.0,0.02120592]
[1761858110294,1.50585352,107500.0,107490.0,0.02120592]
[1761858110495,1.50595512,107500.0,107490.0,0.02120592]
[1761858110695,1.50596834,107500.0,107490.0,0.02120592]
[1761858110890,1.50596777,107500.0,107490.0,0.02120592]
[1761858111095,1.50585352,107500.0,107490.0,0.02120592]
[1761858111497,1.50594022,107500.0,107490.0,0.02120592]
[1761858111690,1.50596891,107500.0,107490.0,0.02120592]
[1761858112006,1.50585352,107500.0,107490.0,0.02120592]
[1761858113902,1.50585352,107500.0,107460.0,0.68268]
[1761858113903,0.05683,107470.0,107460.0,0.68268]
[1761858114101,0.27548688,107470.0,107460.0,0.68268]
[1761858114303,0.27548688,107470.0,107460.0,2.18268]
[1761858115199,0.27548688,107470.0,107460.0,2.18468]
[1761858115504,0.27568619,107470.0,107460.0,2.18468]
[1761858117101,0.08069562,107470.0,107460.0,2.18468]
[1761858119309,0.08069562,107470.0,107460.0,2.78468]
[1761858121100,0.08069562,107470.0,107460.0,2.4628]
[1761858121301,0.08069562,107470.0,107460.0,2.8236]
[1761858122708,0.27568619,107470.0,107460.0,2.8236]
[1761858122903,0.28497619,107470.0,107460.0,0.7236]
[1761858123102,0.28497619,107470.0,107460.0,0.3628]
[1761858123506,0.08998562,107470.0,107460.0,0.3628]
[1761858123907,0.08998562,107470.0,107460.0,0.7236]
[1761858124998,0.08069562,107470.0,107460.0,0.91859057]
[1761858125198,0.08069562,107470.0,107460.0,0.92139057]
[1761858125403,0.03438,107480.0,107460.0,1.20946014]
[1761858125604,0.03438,107480.0,107470.0,0.87763057]
[1761858126311,0.01274,107480.0,107470.0,0.87763057]
[1761858126610,0.05683,107480.0,107470.0,0.87763057]
[1761858127002,0.05683,107480.0,107470.0,0.68264]
[1761858127312,0.01274,107480.0,107470.0,0.87763057]
[1761858127513,0.03438,107480.0,107470.0,0.87763057]
[1761858127719,0.03438,107480.0,107470.0,0.97070097]
[1761858128016,0.01274,107480.0,107470.0,0.97350097]
[1761858128904,0.01274,107480.0,107470.0,0.97450097]
[1761858129105,0.01274,107480.0,107470.0,0.97550097]
[1761858129306,0.05683,107490.0,107470.0,0.97550097]
[1761858129511,0.05683,107490.0,107480.0,0.55579057]
[1761858130815,0.0667875,107500.0,107480.0,0.64885227]
[1761858131003,0.0229975,107500.0,107490.0,0.97064367]
[1761858131204,0.0102075,107500.0,107490.0,0.7784531]
[1761858131509,0.05653,107510.0,107490.0,0.97344367]
[1761858131709,0.05653,107510.0,107500.0,0.65163497]
[1761858131710,0.01274,107510.0,107500.0,0.65163497]
[1761858131910,0.05653,107520.0,107500.0,0.65163497]
[1761858132215,0.06582,107520.0,107510.0,0.6826]
[1761858133619,0.06682,107520.0,107510.0,0.6826]
[1761858133917,0.06882,107520.0,107510.0,0.6826]
[1761858134103,0.07879638,107520.0,107510.0,0.6826]
[1761858134511,0.07679638,107520.0,107510.0,0.6836]
[1761858135116,0.07579638,107520.0,107510.0,0.6846]
[1761858137318,0.06650638,107520.0,107510.0,0.87959057]
[1761858137614,0.02271638,107520.0,107510.0,0.87959057]
[1761858137810,0.02271638,107520.0,107510.0,0.97262637]
[1761858138812,0.00997638,107520.0,107510.0,1.57262637]
[1761858139022,0.01386,107530.0,107510.0,0.97542637]
[1761858139209,0.01386,107530.0,107520.0,0.55579057]
[1761858139415,0.05857,107530.0,107520.0,0.55579057]
[1761858140517,0.0685396,107530.0,107520.0,0.55579057]
[1761858140906,0.0695396,107530.0,107520.0,0.64881777]
[1761858141819,0.0695396,107530.0,107520.0,0.65161777]
[1761858142320,0.0695396,107530.0,107520.0,0.64981777]
[1761858142520,0.0238296,107530.0,107520.0,0.65081777]
[1761858142721,0.0685396,107530.0,107520.0,0.65361777]
[1761858143723,0.0685396,107530.0,107520.0,0.4586272]
[1761858143922,0.0685396,107530.0,107520.0,0.65361777]
[1761858144608,0.0685396,107530.0,107520.0,1.25361777]
[1761858145009,0.0685396,107530.0,107520.0,0.9656]
[1761858145215,0.0685396,107530.0,107520.0,1.16059057]
[1761858145414,0.0685396,107530.0,107520.0,1.15779057]
[1761858145615,0.0685396,107530.0,107520.0,1.16059057]
[1761858145814,0.0685396,107530.0,107520.0,0.56059057]
[1761858146015,0.0685396,107530.0,107520.0,0.55779057]
[1761858146215,0.0685396,107530.0,107520.0,0.65081777]
[1761858147114,0.0685396,107530.0,107520.0,0.55779057]
[1761858147321,0.0685396,107530.0,107520.0,0.65081777]
[1761858147524,0.0465796,107530.0,107520.0,0.65081777]
[1761858147722,0.0099696,107530.0,107520.0,1.25081777]
[1761858147921,0.05857,107540.0,107520.0,1.25081777]
[1761858148116,0.05857,107540.0,107530.0,0.68244]
[1761858148523,0.03296124,107540.0,107530.0,0.97044907]
[1761858148719,0.02367124,107540.0,107530.0,0.97324907]
[1761858149228,0.00981124,107540.0,107530.0,0.97324907]
[1761858149524,0.05857,107550.0,107530.0,1.06626757]
[1761858149741,0.06786,107550.0,107540.0,0.55859057]
[1761858150028,0.06786,107550.0,107540.0,0.3608]
[1761858150930,0.06786,107550.0,107540.0,0.3618]
[1761858152231,0.06786,107550.0,107540.0,0.6834]
[1761858152530,0.06786,107550.0,107540.0,0.6844]
[1761858153026,0.03292251,107550.0,107540.0,0.97240057]
[1761858153535,0.05567251,107550.0,107540.0,0.97520057]
[1761858153734,0.05567251,107550.0,107540.0,0.97240057]
[1761858154031,0.05567251,107550.0,107540.0,0.97520057]
[1761858154733,0.00929,107550.0,107540.0,0.97520057]
[1761858157232,0.02301,107550.0,107540.0,0.97520057]
[1761858157829,0.02301,107550.0,107540.0,0.97240057]
[1761858158539,0.06772,107550.0,107540.0,0.97240057]
[1761858158933,0.06772,107550.0,107540.0,0.87939057]
[1761858159234,0.06772,107550.0,107540.0,0.97240047]
[1761858159431,0.04576,107550.0,107540.0,0.97240047]
[1761858160136,0.06772,107550.0,107540.0,0.97240047]
[1761858160835,0.06772,107550.0,107540.0,0.87939057]
[1761858161436,0.06772,107550.0,107540.0,0.97240047]
[1761858165035,0.06762,107550.0,107540.0,0.97240047]
[1761858165235,0.09118471,107550.0,107540.0,0.97240047]
[1761858165432,0.09118471,107550.0,107540.0,0.87939057]
[1761858166126,0.09118471,107550.0,107540.0,0.6844]
[1761858166328,0.09118471,107550.0,107540.0,0.87939057]
[1761858167337,0.09118471,107550.0,107540.0,0.97240057]
[1761858169837,0.09118471,107550.0,107540.0,0.87939057]
[1761858170139,0.09118471,107550.0,107540.0,0.6844]
[1761858170333,0.09118471,107550.0,107540.0,0.87939057]
[1761858175530,0.04657471,107550.0,107540.0,0.87939057]
[1761858175735,0.09118471,107550.0,107540.0,0.55779057]
[1761858175937,0.09118471,107550.0,107540.0,0.87923057]
[1761858177440,0.09118471,107550.0,107540.0,1.07355314]
[1761858177642,0.28584128,107550.0,107540.0,0.6842]
[1761858178143,0.28584128,107550.0,107540.0,0.87885657]
[1761858179134,0.09118471,107550.0,107540.0,0.87885657]
[1761858179334,0.28584128,107550.0,107540.0,0.87885657]
[1761858179840,0.31080599,107550.0,107540.0,0.3628]
[1761858180035,0.31080599,107550.0,107540.0,0.6842]
[1761858180234,0.34420287,107550.0,107540.0,0.6842]
[1761858180540,0.34420287,107550.0,107540.0,0.3234]
[1761858180744,0.02319,107530.0,107520.0,0.3608]
[1761858181036,0.28749921,107530.0,107520.0,0.6822]
[1761858181239,0.31106392,107530.0,107520.0,0.6822]
[1761858182243,0.28596128,107530.0,107520.0,0.6822]
[1761858183236,0.28696128,107530.0,107520.0,0.6822]
[1761858183637,0.28796128,107530.0,107520.0,0.6822]
[1761858185035,0.09330471,107530.0,107520.0,0.87965657]
[1761858185241,0.09330471,107530.0,107520.0,1.07151314]
[1761858185440,0.09330471,107530.0,107520.0,0.6822]
[1761858185640,0.09330471,107530.0,107520.0,0.87685657]
[1761858187149,0.09330471,107530.0,107520.0,1.07151314]
[1761858188249,0.06974,107530.0,107520.0,1.07151314]
[1761858190150,0.06974,107530.0,107520.0,0.87685657]
[1761858190341,0.06974,107530.0,107520.0,1.07151314]
[1761858190949,0.01129,107530.0,107520.0,1.16454154]
[1761858191449,0.02403,107530.0,107520.0,1.16454154]
[1761858191839,0.04715,107530.0,107520.0,1.16454154]
[1761858192351,0.04615,107530.0,107520.0,1.16454154]
[1761858192548,0.04515,107530.0,107520.0,1.16454154]
[1761858192749,0.04515,107530.0,107520.0,1.16734154]
[1761858192938,0.01384,107540.0,107530.0,0.0930198]
[1761858193250,0.05859,107550.0,107530.0,0.84593294]
[1761858193548,0.05859,107550.0,107540.0,1.07155314]
[1761858193745,0.05859,107550.0,107540.0,1.16456434]
[1761858193946,0.06788,107550.0,107540.0,1.16456434]
[1761858194651,0.04613,107550.0,107540.0,1.16456434]
[1761858195053,0.02301,107550.0,107540.0,1.16456434]
[1761858195352,0.04613,107550.0,107540.0,1.16456434]
[1761858195552,0.04713,107550.0,107540.0,1.16456434]
[1761858195944,0.04613,107550.0,107540.0,1.16456434]
[1761858196143,0.04613,107550.0,107540.0,1.07151314]